fUSD/lending_fUSD_20240624
["ID","MTS","AMOUNT","RATE_DAILY","PERIOD"]
[330239613,1719203485784,-500.0,0.00021917,2]
[330239614,1719203485801,-500.0,0.00021917,2]
[330239615,1719203485819,-500.0,0.00021917,2]
[330239616,1719203485834,-500.0,0.00021917,2]
[330239617,1719203485849,-500.0,0.00021917,2]
[330239618,1719203485867,-500.0,0.00021917,2]
[330239619,1719203485888,-500.0,0.00021917,2]
[330239620,1719203485901,-500.0,0.00021917,2]
[330239621,1719203485917,-500.0,0.00021917,2]
[330239622,1719203485934,-504.65100713,0.00021917,2]
[330239623,1719203485951,-504.06844689,0.00021917,2]
[330239624,1719203485965,-173.51269344,0.00021917,2]
[330239625,1719203485981,-500.0,0.00021917,2]
[330239626,1719203485996,-500.0,0.00021917,2]
[330239627,1719203486011,-500.0,0.00021917,2]
[330239628,1719203486026,-267.44,0.00021917,2]
[330239629,1719203486045,-559.7,0.00021917,2]
[330239630,1719203486060,-500.0,0.00021917,2]
[330239631,1719203486075,-559.7,0.00021917,2]
[330239632,1719203486091,-500.0,0.00021917,2]
[330239633,1719203486106,-559.7,0.00021917,2]
[330239634,1719203486123,-500.0,0.00021917,2]
[330239635,1719203486140,-500.0,0.00021917,2]
[330239636,1719203486155,-559.7,0.00021917,2]
[330239637,1719203486170,-500.0,0.00021917,2]
[330239638,1719203486185,-500.0,0.00021917,2]
[330239639,1719203486200,-559.7,0.00021917,2]
[330239640,1719203486215,-500.0,0.00021917,2]
[330239641,1719203486231,-500.0,0.00021917,2]
[330239642,1719203486246,-559.7,0.00021917,2]
[330239643,1719203486261,-500.0,0.00021917,2]
[330239644,1719203486276,-500.0,0.00021917,2]
[330239645,1719203486291,-500.0,0.00021917,2]
[330239646,1719203486306,-502.46331923,0.00021917,2]
[330239647,1719203486321,-500.0,0.00021917,2]
[330239648,1719203486336,-559.7,0.00021917,2]
[330239649,1719203486350,-500.0,0.00021917,2]
[330239650,1719203486365,-500.0,0.00021917,2]
[330239651,1719203486379,-530.98029848,0.00021917,2]
[330239652,1719203486399,-500.0,0.00021917,2]
[330239653,1719203486413,-503.06634244,0.00021917,2]
[330239654,1719203486428,-559.7,0.00021917,2]
[330239655,1719203486446,-307.05705772,0.00021917,2]
[330239656,1719203486461,-559.7,0.00021917,2]
[330239657,1719203486475,-559.7,0.00021917,2]
[330239658,1719203486490,-2831.81,0.00021917,2]
[330239659,1719203486504,-2831.81,0.00021917,2]
[330239660,1719203486519,-559.7,0.00021917,2]
[330239661,1719203486533,-2831.81,0.00021917,2]
[330239662,1719203486547,-559.7,0.00021917,2]
[330239663,1719203486561,-2831.81,0.00021917,2]
[330239664,1719203486575,-504.06105516,0.00021917,2]
[330239665,1719203486590,-559.7,0.00021917,2]
[330239666,1719203486603,-500.0,0.00021917,2]
[330239667,1719203486617,-559.7,0.00021917,2]
[330239668,1719203486631,-2831.81,0.00021917,2]
[330239669,1719203486647,-500.0,0.00021917,2]
[330239670,1719203486661,-559.7,0.00021917,2]
[330239671,1719203486678,-500.0,0.00021917,2]
[330239672,1719203486693,-500.0,0.00021917,2]
[330239673,1719203486707,-559.7,0.00021917,2]
[330239674,1719203486721,-253.181963,0.00021917,2]
[330239675,1719203486735,-2831.81,0.00021917,2]
[330239676,1719203486749,-500.0,0.00021917,2]
[330239677,1719203486763,-559.7,0.00021917,2]
[330239678,1719203486778,-253.181963,0.00021917,2]
[330239679,1719203486793,-2831.81,0.00021917,2]
[330239680,1719203486807,-500.0,0.00021917,2]
[330239681,1719203486822,-500.0,0.00021917,2]
[330239682,1719203486836,-559.7,0.00021917,2]
[330239683,1719203486850,-500.0,0.00021917,2]
[330239684,1719203486865,-500.0,0.00021917,2]
[330239685,1719203486880,-500.0,0.00021917,2]
[330239686,1719203486895,-253.181963,0.00021917,2]
[330239687,1719203486910,-559.7,0.00021917,2]
[330239688,1719203486925,-500.0,0.00021917,2]
[330239689,1719203486940,-2831.81,0.00021917,2]
[330239690,1719203486955,-559.7,0.00021917,2]
[330239691,1719203486970,-253.181963,0.00021917,2]
[330239692,1719203486985,-500.0,0.00021917,2]
[330239693,1719203487000,-500.0,0.00021917,2]
[330239694,1719203487015,-500.0,0.00021917,2]
[330239695,1719203487032,-500.0,0.00021917,2]
[330239696,1719203487046,-559.7,0.00021917,2]
[330239697,1719203487062,-1279.19,0.00021917,2]
[330239698,1719203487078,-500.0,0.00021917,2]
[330239699,1719203487093,-500.0,0.00021917,2]
[330239700,1719203487284,-410.72883584,0.00021917,2]
[330239701,1719203487295,-2831.81,0.00021917,2]
[330239702,1719203487304,-500.0,0.00021917,2]
[330239703,1719203487314,-559.7,0.00021917,2]
[330239704,1719203487324,-501.99762507,0.00021917,2]
[330239705,1719203487333,-1279.19,0.00021917,2]
[330239706,1719203487342,-500.0,0.00021917,2]
[330239707,1719203487351,-500.0,0.00021917,2]
[330239708,1719203487360,-500.0,0.00021917,2]
[330239709,1719203487369,-2831.81,0.00021917,2]
[330239710,1719203487378,-1279.19,0.00021917,2]
[330239711,1719203487389,-559.7,0.00021917,2]
[330239712,1719203487397,-500.0,0.00021917,2]
[330239713,1719203487406,-1279.19,0.00021917,2]
[330239714,1719203487415,-4510.96,0.00021917,2]
[330239715,1719203487424,-559.82229201,0.00021917,2]
[330239716,1719203487433,-500.0,0.00021917,2]
[330239717,1719203487443,-500.0,0.00021917,2]
[330239718,1719203487452,-2831.81,0.00021917,2]
[330239719,1719203487461,-500.0,0.00021917,2]
[330239720,1719203487470,-1279.19,0.00021917,2]
[330239721,1719203487478,-4510.96,0.00021917,2]
[330239722,1719203487487,-500.0,0.00021917,2]
[330239723,1719203487496,-500.0,0.00021917,2]
[330239724,1719203487505,-500.0,0.00021917,2]
[330239725,1719203487514,-2831.81,0.00021917,2]
[330239726,1719203487524,-1279.19,0.00021917,2]
[330239727,1719203487533,-4510.96,0.00021917,2]
[330239728,1719203487542,-500.0,0.00021917,2]
[330239729,1719203487551,-500.0,0.00021917,2]
[330239730,1719203487560,-500.0,0.00021917,2]
[330239731,1719203487569,-2831.81,0.00021917,2]
[330239732,1719203487578,-1279.19,0.00021917,2]
[330239733,1719203487587,-4510.96,0.00021917,2]
[330239734,1719203487596,-500.0,0.00021917,2]
[330239735,1719203487605,-500.0,0.00021917,2]
[330239736,1719203487614,-500.0,0.00021917,2]
[330239737,1719203487624,-500.0,0.00021917,2]
[330239738,1719203487633,-2831.81,0.00021917,2]
[330239739,1719203487642,-1279.19,0.00021917,2]
[330239740,1719203487651,-4510.96,0.00021917,2]
[330239741,1719203487660,-500.0,0.00021917,2]
[330239742,1719203487669,-500.0,0.00021917,2]
[330239743,1719203487678,-500.0,0.00021917,2]
[330239744,1719203487687,-1279.19,0.00021917,2]
[330239745,1719203487696,-2831.81,0.00021917,2]
[330239746,1719203487705,-500.0,0.00021917,2]
[330239747,1719203487714,-4510.96,0.00021917,2]
[330239748,1719203487723,-500.0,0.00021917,2]
[330239749,1719203487732,-500.0,0.00021917,2]
[330239750,1719203487741,-533.22973659,0.00021917,2]
[330239751,1719203487751,-500.0,0.00021917,2]
[330239752,1719203487760,-1279.19,0.00021917,2]
[330239753,1719203487769,-4510.96,0.00021917,2]
[330239754,1719203487779,-500.0,0.00021917,2]
[330239755,1719203487789,-500.0,0.00021917,2]
[330239756,1719203487798,-1279.19,0.00021917,2]
[330239757,1719203487807,-2831.81,0.00021917,2]
[330239758,1719203487817,-4510.96,0.00021917,2]
[330239759,1719203487827,-500.0,0.00021917,2]
[330239760,1719203487836,-253.181963,0.00021917,2]
[330239761,1719203487845,-500.0,0.00021917,2]
[330239762,1719203487855,-500.0,0.00021917,2]
[330239763,1719203487864,-1279.19,0.00021917,2]
[330239764,1719203487874,-2831.81,0.00021917,2]
[330239765,1719203487883,-500.0,0.00021917,2]
[330239766,1719203487893,-4510.96,0.00021917,2]
[330239767,1719203487903,-500.0,0.00021917,2]
[330239768,1719203487912,-500.0,0.00021917,2]
[330239769,1719203487922,-1279.19,0.00021917,2]
[330239770,1719203487931,-253.181963,0.00021917,2]
[330239771,1719203487941,-500.0,0.00021917,2]
[330239772,1719203487951,-23736.4,0.00021917,2]
[330239773,1719203487961,-2831.81,0.00021917,2]
[330239774,1719203487971,-4510.96,0.00021917,2]
[330239775,1719203487981,-518.66751483,0.00021917,2]
[330239776,1719203487991,-500.0,0.00021917,2]
[330239777,1719203488000,-542.76668617,0.00021917,2]
[330239778,1719203488010,-1279.19,0.00021917,2]
[330239779,1719203488020,-253.181963,0.00021917,2]
[330239780,1719203488030,-23736.4,0.00021917,2]
[330239781,1719203488042,-2831.81,0.00021917,2]
[330239782,1719203488051,-500.0,0.00021917,2]
[330239783,1719203488061,-4510.96,0.00021917,2]
[330239784,1719203488070,-2000.0,0.00021917,7]
[330239785,1719203488079,-500.0,0.00021917,2]
[330239786,1719203488089,-23736.4,0.00021917,2]
[330239787,1719203488098,-2831.81,0.00021917,2]
[330239788,1719203488107,-500.0,0.00021917,2]
[330239789,1719203488119,-4510.96,0.00021917,2]
[330239790,1719203488129,-500.0,0.00021917,2]
[330239791,1719203488141,-2000.0,0.00021917,7]
[330239792,1719203488152,-500.0,0.00021917,2]
[330239793,1719203488161,-23736.4,0.00021917,2]
[330239794,1719203488170,-1279.19,0.00021917,2]
[330239795,1719203488178,-500.0,0.00021917,2]
[330239796,1719203488187,-4510.96,0.00021917,2]
[330239797,1719203488196,-502.64139366,0.00021917,2]
[330239798,1719203488206,-500.0,0.00021917,2]
[330239799,1719203488216,-500.0,0.00021917,2]
[330239800,1719203488225,-23736.4,0.00021917,2]
[330239801,1719203488234,-1279.19,0.00021917,2]
[330239802,1719203488244,-500.0,0.00021917,2]
[330239803,1719203488253,-4510.96,0.00021917,2]
[330239804,1719203488262,-2831.81,0.00021917,2]
[330239805,1719203488271,-2000.0,0.00021917,7]
[330239806,1719203488279,-500.0,0.00021917,2]
[330239807,1719203488288,-1279.19,0.00021917,2]
[330239808,1719203488297,-23736.4,0.00021917,2]
[330239809,1719203488306,-253.181969,0.00021917,2]
[330239810,1719203488315,-4510.96,0.00021917,2]
[330239811,1719203488324,-2000.0,0.00021917,7]
[330239812,1719203488333,-482.44,0.00021917,2]
[330239813,1719203488342,-500.0,0.00021917,2]
[330239814,1719203488351,-1279.19,0.00021917,2]
[330239815,1719203488360,-2831.81,0.00021917,2]
[330239816,1719203488369,-2000.0,0.00021917,7]
[330239817,1719203488378,-500.0,0.00021917,2]
[330239818,1719203488388,-1279.19,0.00021917,2]
[330239819,1719203488397,-2831.81,0.00021917,2]
[330239820,1719203488406,-2000.0,0.00021917,7]
[330239821,1719203488415,-500.0,0.00021917,2]
[330239822,1719203488425,-500.0,0.00021917,2]
[330239823,1719203488434,-23736.4,0.00021917,2]
[330239824,1719203488443,-1279.19,0.00021917,2]
[330239825,1719203488453,-2000.0,0.00021917,7]
[330239826,1719203488462,-500.0,0.00021917,2]
[330239827,1719203488472,-500.0,0.00021917,2]
[330239828,1719203488481,-23736.4,0.00021917,2]
[330239829,1719203488490,-4510.96,0.00021917,2]
[330239830,1719203488499,-1279.19,0.00021917,2]
[330239831,1719203488508,-2000.0,0.00021917,7]
[330239832,1719203488517,-500.0,0.00021917,2]
[330239833,1719203488527,-500.0,0.00021917,2]
[330239834,1719203488536,-23736.4,0.00021917,2]
[330239835,1719203488545,-4510.96,0.00021917,2]
[330239836,1719203488554,-2000.0,0.00021917,7]
[330239837,1719203488564,-500.0,0.00021917,2]
[330239838,1719203488573,-1279.19,0.00021917,2]
[330239839,1719203488582,-2832.04792799,0.00021917,2]
[330239840,1719203488592,-500.0,0.00021917,2]
[330239841,1719203488601,-23736.4,0.00021917,2]
[330239842,1719203488610,-2000.0,0.00021917,7]
[330239843,1719203488619,-482.58972611,0.00021917,2]
[330239844,1719203488629,-4510.96,0.00021917,2]
[330239845,1719203488640,-511.23307267,0.00021917,2]
[330239846,1719203488650,-500.0,0.00021917,2]
[330239847,1719203488659,-500.0,0.00021917,2]
[330239848,1719203488668,-2000.0,0.00021917,7]
[330239849,1719203488677,-10991.12036204,0.00021917,2]
[330239850,1719203490471,-12745.27963796,0.00021917,2]
[330239851,1719203490481,-4510.96,0.00021917,2]
[330239852,1719203490490,-500.0,0.00021917,2]
[330239853,1719203490498,-500.0,0.00021917,2]
[330239854,1719203490507,-1279.19,0.00021917,2]
[330239855,1719203490516,-23736.4,0.00021917,2]
[330239856,1719203490525,-4510.96,0.00021917,2]
[330239857,1719203490534,-500.0,0.00021917,2]
[330239858,1719203490543,-371.21125482,0.00021917,2]
[330239859,1719203490552,-1279.26,0.00021917,2]
[330239860,1719203490563,-1170.87235558,0.00021917,7]
[330239861,1719203490572,-23736.4,0.00021917,2]
[330239862,1719203490581,-4510.96,0.00021917,2]
[330239863,1719203490589,-500.0,0.00021917,2]
[330239864,1719203490598,-23736.4,0.00021917,2]
[330239865,1719203490607,-4510.96,0.00021917,2]
[330239866,1719203490616,-23736.4,0.00021917,2]
[330239867,1719203490625,-4510.96,0.00021917,2]
[330239868,1719203490634,-3499.04,0.00021917,2]
[330239869,1719203490645,-4510.99759147,0.00021917,2]
[330239870,1719203490654,-23736.4,0.00021917,2]
[330239871,1719203490663,-3499.04,0.00021917,2]
[330239872,1719203490672,-3499.04,0.00021917,2]
[330239873,1719203490682,-23736.4,0.00021917,2]
[330239874,1719203490690,-5389.12,0.00021917,2]
[330239875,1719203490700,-3499.04,0.00021917,2]
[330239876,1719203490708,-22279.77585081,0.00021917,2]
[330239877,1719203490736,-155.86632473,0.00020812,2]
[330239878,1719203490745,-304.52684624,0.00021917,2]
[330239879,1719203490756,-706.55085503,0.00021917,2]
[330239880,1719203490768,-445.54644792,0.00021917,2]
[330239881,1719203490777,-248.86984697,0.00021917,2]
[330239882,1719203490804,-365.2873899,0.00021896,2]
[330239883,1719203490814,-70.38343293,0.00021917,2]
[330239884,1719203490826,-180.7467201,0.00021917,2]
[330239885,1719203490835,-5389.12,0.00021917,2]
[330239886,1719203490845,-3499.04,0.00021917,2]
[330239887,1719203490854,-6909.20183241,0.00021917,2]
[330239888,1719203490866,-2502.10018369,0.00021917,2]
[330239889,1719203490882,-288.61535007,0.00021734,2]
[330239890,1719203491230,-762.87192346,0.00021734,2]
[330239891,1719203491239,-6861.85385794,0.00021917,2]
[330239892,1719203491251,-7463.24412596,0.00021917,2]
[330239893,1719203491260,-1266.68,0.00021917,2]
[330239894,1719203491270,-357.67173788,0.00021917,2]
[330239895,1719203491282,-142.32826212,0.00021917,2]
[330239896,1719203491291,-168.23332053,0.00021917,2]
[330239897,1719203491307,-2580.0,0.00021917,2]
[330239898,1719203491318,-2640.88667947,0.00021917,2]
[330239899,1719203491327,-14794.28362736,0.00021917,2]
[330239900,1719203491351,-660.33561149,0.00020479,2]
[330239901,1719203491361,-8942.11637264,0.00021917,2]
[330239902,1719203491370,-1266.68,0.00021917,2]
[330239903,1719203491379,-5389.12,0.00021917,2]
[330239904,1719203491388,-564.74,0.00021917,2]
[330239905,1719203491397,-23736.4,0.00021917,2]
[330239906,1719203491406,-1266.68,0.00021917,2]
[330239907,1719203491414,-5389.12,0.00021917,2]
[330239908,1719203491424,-23736.4,0.00021917,2]
[330239909,1719203491433,-1266.68,0.00021917,2]
[330239910,1719203491443,-5389.12,0.00021917,2]
[330239911,1719203491452,-1266.68,0.00021917,2]
[330239912,1719203491461,-5389.12,0.00021917,2]
[330239913,1719203491471,-502.61873849,0.00021917,2]
[330239914,1719203491480,-13486.95250001,0.00021917,2]
[330239915,1719203491496,-3091.4771783,0.00021917,2]
[330239916,1719203491508,-1903.54310028,0.00021917,2]
[330239917,1719203491528,-651.12932263,0.00021917,2]
[330239918,1719203491541,-1315.418322,0.00021917,2]
[330239919,1719203491555,-453.0,0.00021917,2]
[330239920,1719203491566,-2834.87957678,0.00021917,2]
[330239921,1719203491576,-4265.12042322,0.00021917,2]
[330239922,1719203491588,-1123.99957678,0.00021917,2]
[330239923,1719203491597,-161.628173,0.00021917,2]
[330239924,1719203491609,-20125.44479431,0.00021917,2]
[330239925,1719203491630,-3611.15233889,0.00021917,2]
[330239926,1719203491641,-1266.68,0.00021917,2]
[330239927,1719203491651,-5389.12,0.00021917,2]
[330239928,1719203491661,-161.628173,0.00021917,2]
[330239929,1719203491670,-1266.68,0.00021917,2]
[330239930,1719203491679,-5389.12,0.00021917,2]
[330239931,1719203491688,-161.628173,0.00021917,2]
[330239932,1719203491697,-1266.68,0.00021917,2]
[330239933,1719203491707,-5389.12,0.00021917,2]
[330239934,1719203491716,-1266.68,0.00021917,2]
[330239935,1719203491726,-5389.12,0.00021917,2]
[330239936,1719203491736,-1266.68,0.00021917,2]
[330239937,1719203491746,-2956.86462387,0.00021917,2]
[330239938,1719203491788,-2432.25537613,0.00021917,2]
[330239939,1719203491798,-1266.68,0.00021917,2]
[330239940,1719203491808,-501.03576331,0.00021917,2]
[330239941,1719203491818,-2205.80082275,0.00021917,2]
[330239942,1719203493486,159.22,0.00025967,120]
[330239947,1719203799526,161.38706449,0.00025,60]
[330239948,1719203806510,155.0,0.000249,60]
[330239949,1719203919575,286.90087578,0.0002495,60]
[330239950,1719203977492,168.35,0.00018849,30]
[330239951,1719203991553,304.46,0.00025899,120]
[330239962,1719204526514,168.35,0.00018849,30]
[330239963,1719204616282,152.25,0.00025116,120]
[330239982,1719204631702,-409.12146104,0.000118,2]
[330239983,1719204631713,-1852.97114235,0.000118,2]
[330239984,1719204631736,-6241.64384186,0.000118,2]
[330239985,1719204631749,-2603.71306986,0.000118,2]
[330239986,1719204631761,-943.26744094,0.000118,2]
[330239987,1719204631772,-574.32971375,0.000118,2]
[330239988,1719204631800,-2400.0,0.000118,2]
[330239989,1719204631815,-13516.46096064,0.000118,2]
[330239990,1719204631823,-600.30000237,0.00013,2]
[330239991,1719204631832,-1000.0,0.000137,2]
[330239992,1719204631842,-1007.0,0.000139,2]
[330239993,1719204631851,-1954.57174591,0.00013925,2]
[330239994,1719204631860,-150.0,0.00013973,2]
[330239995,1719204631868,-414.186737,0.0001399,2]
[330239996,1719204631877,-614.49,0.0001399,3]
[330239997,1719204631886,-16337.00331879,0.00014,2]
[330239998,1719204631896,-514.29235671,0.00014,2]
[330239999,1719204631908,-11419.36902647,0.00014,2]
[330240000,1719204631918,-22592.65279853,0.00014,2]
[330240001,1719204631938,-331.5,0.00014,2]
[330240002,1719204631949,-297.86256585,0.00014,2]
[330240004,1719204631976,-3880.42848261,0.00014,2]
[330240032,1719204637530,-813.90015,0.00014,2]
[330240034,1719204637541,-4039.50613477,0.00014,2]
[330240035,1719204637552,-7032.43379584,0.00014,2]
[330240036,1719204637563,-6042.88438236,0.00014,2]
[330240039,1719204637605,-7186.15228466,0.00014,2]
[330240041,1719204637617,-421.399227,0.00014,2]
[330240043,1719204637628,-956.99378914,0.00014,2]
[330240045,1719204637640,-1807.80437683,0.00014,2]
[330240047,1719204637651,-3265.55644233,0.00014,2]
[330240049,1719204637663,-4209.38284784,0.00014,2]
[330240051,1719204637676,-264.54053448,0.00014,2]
[330240053,1719204637688,-534.67786524,0.00014,2]
[330240055,1719204637699,-33950.0,0.00014,2]
[330240056,1719204637711,-16532.93820369,0.00014,2]
[330240057,1719204637723,-2198.40480559,0.00014,2]
[330240058,1719204637746,-29423.28434707,0.00014,2]
[330240059,1719204637758,-2644.17619719,0.00014,2]
[330240060,1719204637770,-2067.86079862,0.00014,2]
[330240061,1719204637781,-1113.46114593,0.00014,2]
[330240062,1719204637793,-375.82522431,0.00014,2]
[330240063,1719204637816,-6081.73346951,0.00014,2]
[330240064,1719204637827,-548.096,0.00014,2]
[330240065,1719204637839,-584.51193924,0.00014,2]
[330240066,1719204637850,-251.60714365,0.00014,2]
[330240067,1719204637862,-1069.37098182,0.00014,2]
[330240068,1719204637873,-4936.4916975,0.00014,2]
[330240069,1719204637884,-12290.958005,0.00014,2]
[330240070,1719204637896,-544.38170658,0.00014,2]
[330240071,1719204637907,-447.56867183,0.00014,2]
[330240072,1719204637938,-269.49698536,0.00014,2]
[330240073,1719204637949,-332.57131004,0.00014,2]
[330240074,1719204637961,-1773.35208208,0.00014,2]
[330240075,1719204637976,-4301.317335,0.00014,2]
[330240090,1719204639670,-677.49,0.00014,2]
[330240094,1719204639683,-7976.82680112,0.00014,2]
[330240096,1719204639694,-3003.39578334,0.00014,2]
[330240100,1719204639759,-500.0,0.00014,2]
[330240101,1719204639770,-681.43362743,0.00014,2]
[330240102,1719204639782,-4371.83669694,0.00014,2]
[330240103,1719204639794,-14901.43966287,0.00014,2]
[330240104,1719204639807,-199000.73663616,0.00014,2]
[330240105,1719204639819,-5612.30445086,0.00014,2]
[330240106,1719204639830,-454.18508886,0.00014,2]
[330240107,1719204639842,-3885.68981645,0.00014,2]
[330240108,1719204639854,-563.21663336,0.00014,2]
[330240109,1719204639866,-5071.43030025,0.00014,2]
[330240110,1719204639897,-97314.79524401,0.00014,2]
[330240111,1719204639926,-1567417.78328324,0.00014,2]
[330240112,1719204639937,-176.92308185,0.00014025,2]
[330240113,1719204639947,-554.46,0.00014746,2]
[330240114,1719204639957,-1954.57174589,0.00014802,2]
[330240115,1719204639966,-155.0,0.00014907,2]
[330240116,1719204639976,-3106.94505996,0.00014968,2]
[330240117,1719204639985,-253.90432169,0.00014999,2]
[330240118,1719204639994,-150.99,0.0001505,2]
[330240119,1719204640006,-241.98925564,0.0001505,2]
[330240120,1719204640016,-1263.2464365,0.0001505,2]
[330240121,1719204640025,-622.21690927,0.00015247,2]
[330240122,1719204640034,-2436.90768454,0.00015337,2]
[330240123,1719204640043,-715.71837698,0.00015478,2]
[330240124,1719204640052,-1954.57174589,0.00015679,2]
[330240125,1719204640061,-1000.0,0.00015854,2]
[330240126,1719204640071,-196.0883908,0.00015854,2]
[330240127,1719204640081,-955.85753929,0.00015897,2]
[330240128,1719204640090,-7436.15892644,0.00015919,2]
[330240129,1719204640100,-1069.82113378,0.0001592,2]
[330240130,1719204640109,-12749.19467156,0.0001592,2]
[330240131,1719204640118,-412.61839352,0.00015921,2]
[330240132,1719204640127,-475.10495739,0.00015921,2]
[330240133,1719204640137,-158.86009896,0.00015921,2]
[330240134,1719204640146,-346.07679139,0.00015922,2]
[330240135,1719204640155,-155.0,0.00015922,2]
[330240136,1719204640164,-155.0,0.00015925,2]
[330240137,1719204640174,-2198.85723835,0.00016041,2]
[330240138,1719204640183,-5000.0,0.00016042,2]
[330240139,1719204640193,-544.27708318,0.00016401,2]
[330240140,1719204640202,-660.33561149,0.00016402,2]
[330240141,1719204640211,-269.30966923,0.00016403,2]
[330240142,1719204640221,-217.87188322,0.00016403,2]
[330240143,1719204640231,-1757.44036792,0.00016521,2]
[330240144,1719204640240,-592.0,0.00016539,2]
[330240145,1719204640249,-1954.57174589,0.00016556,2]
[330240146,1719204640259,-152.25,0.00016744,2]
[330240147,1719204640269,-250.0,0.00016912,2]
[330240148,1719204640278,-304.24,0.00017003,2]
[330240149,1719204640287,-554.46,0.0001701,2]
[330240150,1719204640296,-2000.0,0.00017062,3]
[330240151,1719204640305,-250.0,0.00017198,2]
[330240152,1719204640315,-2800.39,0.00017238,2]
[330240153,1719204640325,-304.46,0.00017266,2]
[330240154,1719204640334,-1954.57174589,0.00017433,2]
[330240155,1719204640343,-1000.0,0.00017492,2]
[330240156,1719204640352,-2100.0,0.00017656,2]
[330240157,1719204640362,-4673.0,0.000179,2]
[330240158,1719204640371,-1000.0,0.00018,4]
[330240159,1719204640380,-1830.0,0.00018052,2]
[330240160,1719204640389,-290.0,0.00018052,2]
[330240163,1719204640404,-4479.141,0.00018052,2]
[330240165,1719204640413,-152.0,0.00018052,2]
[330240167,1719204640422,-209.076,0.00018052,2]
[330240169,1719204640431,-153.0,0.00018052,2]
[330240171,1719204640442,-5168.0,0.00018052,2]
[330240173,1719204640452,-153.721,0.00018052,2]
[330240175,1719204640461,-244.325,0.00018052,2]
[330240177,1719204640470,-150.647,0.00018052,2]
[330240179,1719204640482,-1196.0,0.00018052,2]
[330240180,1719204640491,-1661.0,0.00018052,2]
[330240181,1719204640500,-157.013,0.00018052,2]
[330240182,1719204640510,-38166.0,0.00018052,2]
[330240183,1719204640518,-242.159,0.00018052,2]
[330240184,1719204640527,-1068.0,0.00018052,2]
[330240185,1719204640536,-170.167,0.00018052,2]
[330240186,1719204640545,-1954.57174589,0.00018309,2]
[330240187,1719204640555,-1000.0,0.00018848,2]
[330240188,1719204640565,-1036.99951453,0.00018849,2]
[330240189,1719204640575,-169.55934429,0.00018849,2]
[330240190,1719204640584,-173.88463903,0.00019,2]
[330240191,1719204640593,-5263.08162219,0.00019,2]
[330240192,1719204640603,-466.14275076,0.00019178,2]
[330240193,1719204640612,-250.0,0.00019178,2]
[330240194,1719204640622,-1954.57174589,0.00019186,2]
[330240195,1719204640631,-554.46,0.00019274,2]
[330240196,1719204640641,-304.46,0.00019424,2]
[330240197,1719204640650,-159.22,0.00019475,2]
[330240198,1719204640659,-160.0,0.0001952,2]
[330240199,1719204640669,-1000.0,0.00019678,2]
[330240200,1719204640679,-720.44278656,0.00019725,2]
[330240201,1719204640689,-304.24,0.00019743,2]
[330240202,1719204640698,-491.61691634,0.00019778,2]
[330240203,1719204640707,-316.02,0.000198,2]
[330240204,1719204640717,-998.84,0.000198,2]
[330240205,1719204640726,-866.64783494,0.0002,2]
[330240206,1719204640735,-187.96812151,0.0002,2]
[330240207,1719204640744,-326.82157281,0.0002,2]
[330240208,1719204640753,-2245.32077655,0.0002,2]
[330240209,1719204640762,-598.7658402,0.0002,2]
[330240210,1719204640772,-285.35704526,0.0002,2]
[330240211,1719204640781,-39805.13256032,0.0002,2]
[330240212,1719204640790,-1954.57174589,0.00020063,2]
[330240213,1719204640799,-610.99316298,0.00020285,2]
[330240214,1719204640808,-220.04917886,0.00020355,2]